bitfinex/quotes_ETHUSD_20260108
["timestamp","ask_amount","ask_price","bid_price","bid_amount"]
[1767835930373,0.97386145,3176.0,3175.4,0.001]
[1767835932398,3.97407776,3176.6,3175.4,0.74625596]
[1767835932590,0.97386145,3176.4,3175.4,0.74625596]
[1767835933497,0.97386145,3176.4,3175.5,0.74525596]
[1767835933988,0.97386145,3176.4,3175.4,0.001]
[1767835934366,0.97386145,3176.4,3175.4,3.89545531]
[1767835934893,0.97386145,3176.4,3175.4,0.74625596]
[1767835935291,0.97386145,3176.4,3175.4,3.89542906]
[1767835936698,0.97386145,3176.4,3175.4,3.89546273]
[1767835937003,0.97386145,3176.4,3175.4,3.89543878]
[1767835937201,0.97386145,3176.3,3175.4,0.001]
[1767835937376,0.97386145,3176.1,3175.4,0.001]
[1767835937905,0.97386145,3175.9,3174.9,1.57125596]
[1767835938202,0.97386145,3175.9,3175.0,0.74525596]
[1767835938384,0.97386145,3176.3,3175.2,0.74525596]
[1767835938701,0.97386145,3176.3,3175.4,0.74525596]
[1767835940310,0.97386145,3176.3,3175.3,3.89450213]
[1767835940478,0.97386145,3176.3,3175.1,3.97542525]
[1767835940809,0.97386145,3176.3,3175.5,0.74525596]
[1767835940979,1.79986145,3176.5,3175.5,0.74525596]
[1767835941302,0.97386145,3176.4,3175.5,0.74525596]
[1767835941687,0.97386145,3176.4,3175.5,0.77674706]
[1767835942007,0.97386145,3176.4,3175.6,3.14901121]
[1767835942180,0.17998615,3176.3,3175.6,3.14901121]
[1767835942592,1.1538476,3176.3,3175.6,3.14901121]
[1767835943176,0.97386145,3176.5,3175.7,0.74525596]
[1767835944083,0.97386145,3176.5,3175.6,7.12402242]
[1767835944281,0.97386145,3176.5,3175.6,7.86927838]
[1767835944510,0.97386145,3176.5,3175.7,0.74525596]
[1767835945824,0.97586145,3176.7,3175.8,0.74525596]
[1767835946003,0.002,3176.7,3175.8,0.74525596]
[1767835946329,0.002,3176.7,3176.0,0.74525596]
[1767835947648,0.002,3176.7,3176.1,1.57125596]
[1767835947815,0.826,3177.7,3176.1,1.57125596]
[1767835947816,10.97386145,3178.2,3176.7,0.74325596]
[1767835948141,0.002,3178.9,3176.1,1.61286835]
[1767835948142,0.97386145,3177.9,3177.0,7.03850304]
[1767835948303,0.97386145,3177.9,3177.0,3.14762354]
[1767835948506,0.97386145,3177.9,3177.0,3.97362354]
[1767835948832,0.97386145,3177.9,3177.0,3.14762354]
[1767835950734,0.97386145,3177.8,3176.7,3.97389753]
[1767835950927,3.14673707,3177.9,3176.7,3.14789753]
[1767835950928,0.97386145,3177.6,3176.7,3.14789753]
[1767835951237,0.97386145,3177.6,3176.7,3.97389753]
[1767835952431,0.97386145,3177.6,3175.8,0.74325596]
[1767835952619,3.14705814,3177.6,3176.1,6.29702536]
[1767835952830,0.93950199,3177.4,3176.1,3.14850989]
[1767835953243,0.93950199,3177.4,3176.1,0.826]
[1767835953741,0.93950199,3177.4,3176.2,0.74325596]
[1767835954818,0.93950199,3177.4,3176.3,3.14831722]
[1767835955143,0.93950199,3177.0,3176.3,3.14831722]
[1767835956945,0.93950199,3177.0,3176.2,0.826]
[1767835959035,0.93950199,3177.0,3176.2,3.97439069]
[1767835959838,0.002,3177.1,3176.4,0.96661609]
[1767835961254,0.002,3177.1,3176.5,7.26285407]
[1767835961851,0.002,3177.1,3176.6,0.96661609]
[1767835963465,0.002,3177.1,3176.7,3.14792079]
[1767835965864,0.002,3177.1,3176.7,6.29584158]
[1767835966077,0.002,3177.1,3176.7,7.98870344]
[1767835966371,0.002,3177.1,3176.8,0.96661609]
[1767835967441,0.002,3177.1,3176.7,3.87416656]
[1767835967649,0.002,3177.1,3176.7,4.70016656]
[1767835969339,0.002,3177.1,3176.7,7.84808735]
[1767835969857,0.002,3177.1,3176.7,4.70016656]
[1767835970034,0.002,3177.1,3176.7,3.87416656]
[1767835971640,0.002,3177.1,3176.7,3.87415432]
[1767835972463,0.002,3177.1,3176.7,3.8741445]
[1767835978371,0.002,3177.1,3176.7,3.14789873]
[1767835979849,0.002,3177.1,3177.0,0.001]
[1767835982848,0.90403139,3177.1,3177.0,0.001]
[1767835983065,0.90403139,3177.1,3176.5,3.14806005]
[1767835984779,0.90403139,3177.1,3176.5,6.29617904]
[1767835984954,0.90403139,3177.1,3176.5,8.05764591]
[1767835985152,0.90403139,3177.1,3176.5,7.10378321]
[1767835987572,0.90403139,3177.1,3176.5,3.95566422]
[1767835988088,0.90403139,3177.1,3176.2,0.001]
[1767835988387,0.90203139,3176.9,3175.6,0.1]
[1767835988683,0.826,3177.0,3175.6,0.1]
[1767835988684,0.90203139,3176.7,3175.6,0.1]
[1767835988984,0.90203139,3176.5,3175.6,0.1]
[1767835989189,0.90203139,3176.3,3175.2,1e-08]
[1767835989375,0.90203139,3176.3,3175.2,3.14933076]
[1767835989578,0.90203139,3176.3,3175.3,3.14929903]
[1767835989758,0.90203139,3176.1,3175.2,3.14936728]
[1767835990282,0.90203139,3176.1,3175.2,1e-08]
[1767835991085,0.90203139,3176.0,3175.2,1e-08]
[1767835992161,0.90203139,3175.9,3175.2,1e-08]
[1767835993586,0.90203139,3175.7,3175.2,1e-08]
[1767835995366,0.90203139,3175.6,3175.2,1e-08]
[1767835995567,3.14891501,3175.7,3174.4,4.1039855]
[1767835995568,0.90203139,3175.4,3174.4,4.1039855]
[1767835995869,0.90203139,3175.4,3174.3,0.827]
[1767835995870,0.90203139,3175.4,3174.5,4.10395693]
[1767835996073,0.90203139,3175.4,3174.5,4.1039282]
[1767835996589,0.90203139,3175.4,3174.5,0.9538627]
[1767835997087,0.90203139,3175.2,3174.5,0.9538627]
[1767835997391,0.90203139,3175.2,3174.5,4.10391842]
[1767835997695,0.90203139,3175.2,3174.5,0.9538627]
[1767835998961,0.90203139,3175.2,3174.5,4.10393612]
[1767835999361,0.90203139,3175.2,3174.5,0.9538627]
[1767835999778,0.90203139,3175.2,3174.5,4.1038865]
[1767836000065,0.90203139,3175.5,3174.6,0.9538627]
[1767836000390,0.90203139,3175.7,3174.6,0.9538627]
[1767836000564,0.90203139,3175.7,3174.7,4.10376662]
[1767836002814,0.90203139,3175.7,3175.0,0.001]
[1767836003807,0.90203139,3175.0,3174.3,0.001]
[1767836003964,0.90203139,3174.7,3174.0,0.9538627]
[1767836004367,0.90203139,3174.7,3173.7,3.15089521]
[1767836004368,0.90203139,3174.7,3173.8,0.9538627]
[1767836004682,0.90203139,3174.7,3173.8,4.10465847]
[1767836005671,0.90203139,3174.7,3173.8,0.9538627]
[1767836006083,0.90203139,3174.7,3173.8,4.10465725]
[1767836007470,0.90203139,3174.6,3173.8,0.9538627]
[1767836008504,0.90203139,3174.6,3173.6,4.93078637]
[1767836008685,0.90203139,3174.6,3173.7,3.15087434]
[1767836009012,0.90203139,3174.6,3173.6,4.93081317]
[1767836009888,0.16,3175.9,3173.8,0.9538627]
[1767836010086,0.90203139,3175.4,3173.9,0.9538627]
[1767836010289,0.90203139,3175.2,3173.9,0.9538627]
[1767836011089,0.90203139,3175.1,3174.1,0.9538627]
[1767836012211,0.90203139,3175.1,3173.9,0.92872436]
[1767836013412,0.91765588,3174.6,3173.7,0.92872436]
[1767836013615,0.91765588,3174.6,3173.5,1.75472436]
[1767836014611,0.91765588,3174.6,3173.5,4.07981916]
[1767836014906,0.91765588,3174.6,3173.5,0.92872436]
[1767836015106,0.91765588,3174.6,3174.2,0.001]
[1767836015310,0.91765588,3174.4,3173.5,4.07977933]
[1767836016190,0.91765588,3174.4,3173.6,0.92872436]
[1767836016799,0.826,3174.8,3173.8,0.92872436]
[1767836016800,1.74365588,3174.8,3173.8,0.92872436]
[1767836017004,0.91765588,3174.8,3173.8,0.92872436]
[1767836017188,0.91765588,3174.6,3173.8,0.92872436]
[1767836017390,0.91765588,3174.6,3173.8,4.07947749]
[1767836017914,0.91765588,3174.6,3173.9,0.92872436]
[1767836020013,0.91765588,3174.5,3173.5,3.15101372]
[1767836020219,0.91765588,3174.3,3173.4,4.08020929]
[1767836020632,0.91765588,3174.3,3173.4,4.90720929]
[1767836021141,0.91765588,3174.3,3173.4,0.92903728]
[1767836021355,0.91765588,3174.3,3173.4,4.08016487]
[1767836021509,0.91765588,3174.3,3173.4,0.92903728]
[1767836021847,0.91765588,3174.3,3173.4,4.08018423]
[1767836022052,0.91765588,3174.3,3173.4,4.88602975]
[1767836022848,0.91765588,3174.3,3173.4,8.03722405]
[1767836023054,0.91765588,3174.3,3173.4,7.10849969]
[1767836023516,0.91765588,3174.3,3173.5,0.92872436]
[1767836023940,0.91765588,3174.3,3173.6,4.07972007]
[1767836024548,0.91765588,3174.3,3173.4,3.95733286]
[1767836024549,0.91765588,3174.3,3173.4,0.00031292]
[1767836026533,0.91765588,3174.2,3173.4,0.00031292]
[1767836026715,3.97676278,3174.9,3173.4,0.00031292]
[1767836026716,0.91765588,3174.0,3173.4,0.00031292]
[1767836027442,0.91765588,3174.2,3173.4,0.92903728]
[1767836027651,0.91765588,3174.6,3173.9,0.001]
[1767836028012,0.91765588,3174.4,3173.9,0.001]
[1767836029264,0.91765588,3174.4,3173.5,4.0797818]
[1767836029846,0.91765588,3174.4,3173.5,7.2308768]
[1767836030049,0.91765588,3174.4,3173.6,0.92872436]
[1767836031045,0.91765588,3174.4,3173.7,4.07962079]
[1767836032450,0.91765588,3174.4,3173.7,4.11112975]
[1767836032650,0.91765588,3174.4,3173.7,4.07962079]
[1767836033934,0.002,3174.5,3173.8,0.96023233]
[1767836034930,0.002,3174.5,3173.8,0.92872436]
[1767836035753,0.002,3174.5,3173.9,0.92872436]
[1767836037559,0.91965588,3174.5,3173.7,1.65178413]
[1767836037728,0.91965588,3174.5,3173.7,0.92872436]
[1767836038457,0.91965588,3174.5,3173.7,4.07961071]
[1767836040258,0.002,3174.2,3173.7,4.07961071]
[1767836043156,0.002,3174.2,3173.8,0.93614667]
[1767836045245,0.002,3174.2,3173.8,4.08690785]
[1767836045448,0.002,3174.2,3173.9,0.93614667]
[1767836048043,0.002,3174.2,3173.7,3.15085141]
[1767836048044,0.002,3174.2,3173.7,4.08699808]
[1767836048773,0.002,3174.2,3173.8,3.15079302]
[1767836049953,0.002,3174.2,3173.8,0.93614667]
[1767836050583,0.002,3174.2,3173.9,0.93614667]
[1767836050784,0.002,3174.8,3174.2,0.93614667]
[1767836051157,0.91623805,3174.8,3174.2,0.93614667]
[1767836051358,0.91423805,3174.7,3173.5,3.15105009]
[1767836051673,0.91423805,3174.4,3173.4,0.93645959]
[1767836051881,0.91423805,3174.2,3173.4,0.93645959]
[1767836052070,0.91423805,3174.2,3173.4,4.08759772]
[1767836052071,0.91623805,3174.2,3173.4,4.08759772]
[1767836052268,0.91623805,3174.2,3173.4,0.93645959]
[1767836052663,0.91623805,3174.2,3173.4,0.00031292]
[1767836052864,0.91623805,3174.2,3173.4,3.15147682]
[1767836053265,0.91623805,3174.2,3173.4,0.00031292]
[1767836053456,0.91623805,3174.2,3173.4,3.15146849]
[1767836053457,0.91423805,3174.0,3173.4,3.15146849]
[1767836053657,0.91423805,3174.0,3173.4,0.00031292]
[1767836054150,0.91623805,3174.2,3173.4,0.93645959]
[1767836056679,0.91623805,3174.2,3173.5,0.93614667]
[1767836057861,0.91623805,3174.2,3173.4,0.00031292]
[1767836058383,0.91423805,3174.0,3173.4,0.00031292]
[1767836060986,0.91423805,3173.9,3173.4,0.00031292]
[1767836063861,3.55720013,3174.1,3173.4,0.00031292]
[1767836064066,4.47143818,3174.1,3173.4,0.00031292]
[1767836064258,0.91423805,3174.0,3173.4,0.00031292]
[1767836064586,0.44714382,3173.9,3173.7,0.001]
[1767836064886,0.91423805,3173.8,3173.4,0.00031292]
[1767836067383,0.44914382,3173.9,3173.4,0.00031292]
[1767836067585,1.36338187,3173.9,3173.4,0.00031292]
[1767836068260,0.44914382,3173.9,3173.4,0.00031292]
[1767836068463,0.002,3173.9,3173.4,0.00031292]
[1767836072781,0.9334145,3173.9,3173.4,0.00031292]
[1767836077298,0.9314145,3173.8,3173.1,0.35193196]
[1767836077503,0.9314145,3173.8,3173.0,3.62073906]
[1767836077666,0.9314145,3173.7,3172.8,3.33434143]
[1767836077861,0.9314145,3173.7,3172.7,0.827]
[1767836077862,0.9314145,3173.7,3172.9,2.67763255]
[1767836078084,0.9314145,3173.6,3172.8,2.99379021]
[1767836078368,0.9314145,3173.6,3172.8,6.1774969]
[1767836078566,0.9314145,3173.6,3172.8,5.83022103]
[1767836078767,0.9314145,3173.6,3172.8,5.57765839]
[1767836078966,0.92742262,3173.6,3173.0,0.00099797]
[1767836079296,0.91544698,3173.6,3173.0,0.00099797]
[1767836079492,0.827,3173.7,3173.0,0.00099797]
[1767836079694,0.81901624,3173.7,3173.2,0.02095737]
[1767836079886,0.79406684,3173.7,3173.2,0.02095737]
[1767836080287,0.79007496,3173.7,3173.2,0.02095737]
[1767836080480,0.7820912,3173.7,3173.2,0.02095737]
[1767836080675,0.77410744,3173.7,3173.2,0.02095737]
[1767836080881,0.76612368,3173.7,3173.2,0.02095737]
[1767836081077,0.76612368,3173.7,3172.9,0.02095737]
[1767836081078,0.92742262,3173.6,3172.9,0.02095737]
[1767836081276,0.76312977,3173.7,3173.0,0.02894113]
[1767836081480,0.75514601,3173.7,3173.1,0.03293301]
[1767836081684,0.74716225,3173.7,3173.1,0.03293301]
[1767836081885,0.73818052,3173.7,3173.2,0.03293301]
[1767836082074,0.73019676,3173.7,3173.2,0.03293301]
[1767836082275,0.72420894,3173.7,3173.2,0.03293301]
[1767836082474,0.71622518,3173.7,3173.2,0.03293301]
[1767836082674,0.70824142,3173.7,3173.2,0.03293301]
[1767836082911,0.70025766,3173.7,3173.2,0.03293301]
[1767836083109,0.69726375,3173.7,3173.2,0.03293301]
[1767836083401,0.69027796,3173.7,3173.2,0.03293301]
[1767836083604,0.68129623,3173.7,3173.2,0.03293301]
[1767836083900,0.66932059,3173.7,3173.2,0.03293301]
[1767836084109,0.84359251,3173.6,3172.9,0.03293301]
[1767836084435,0.84359251,3173.6,3172.9,3.47010276]
[1767836084609,0.8405986,3173.6,3173.0,3.15156825]
[1767836084788,0.66333277,3173.7,3173.1,0.12873876]
[1767836085117,0.65135713,3173.7,3173.1,0.12873876]
[1767836085297,0.64337337,3173.7,3173.1,0.12873876]
[1767836085606,0.63139773,3173.7,3173.1,0.12873876]
[1767836085783,0.62341397,3173.7,3173.1,0.12873876]
[1767836086106,0.61143833,3173.7,3173.1,0.12873876]
[1767836086407,1.53087719,3173.7,3173.1,0.12873876]
[1767836086606,1.52289343,3173.7,3173.1,3.28022254]
[1767836086808,1.51790358,3173.7,3173.1,3.28022254]
[1767836087010,1.50991982,3173.7,3173.1,0.12873876]
[1767836087308,1.49794418,3173.7,3173.1,0.12873876]
[1767836087495,1.48996042,3173.7,3173.1,0.12873876]
[1767836087696,1.48197666,3173.7,3173.1,0.12873876]
[1767836087892,1.4739929,3173.7,3173.1,0.12873876]
[1767836088088,1.46600914,3173.7,3173.1,0.12873876]
[1767836088300,1.45802538,3173.7,3173.1,0.12873876]
[1767836088498,1.45004162,3173.7,3173.1,0.12873876]
[1767836088700,1.44205786,3173.7,3173.1,0.12873876]
[1767836088909,0.002,3173.6,3173.1,0.12873876]
[1767836089215,1.4340741,3173.7,3173.1,0.12873876]
[1767836089216,1.42509237,3173.7,3173.1,0.44192095]
[1767836089427,1.41710861,3173.7,3173.1,3.59340945]
[1767836089611,1.40912485,3173.7,3173.1,0.44192095]
[1767836089913,1.39714921,3173.7,3173.1,0.44192095]
[1767836090079,1.38916545,3173.7,3173.1,0.44192095]
[1767836090285,1.38118169,3173.7,3173.1,0.44192095]
[1767836090509,1.37319793,3173.7,3173.1,0.44192095]
[1767836090711,1.36521417,3173.7,3173.1,0.44192095]
[1767836090914,1.35822838,3173.7,3173.1,0.44192095]
[1767836091110,1.35124259,3173.7,3173.1,0.44192095]
[1767836091312,1.34325883,3173.7,3173.1,0.44192095]
[1767836091488,1.33826898,3173.7,3173.1,0.44192095]
[1767836091684,1.33627304,3173.7,3173.1,0.44192095]
[1767836091889,1.32828928,3173.7,3173.1,0.44192095]
[1767836092195,1.31631364,3173.7,3173.1,0.44192095]
[1767836092395,1.30733191,3173.7,3173.1,0.44192095]
[1767836092592,1.30134409,3173.7,3173.1,0.44192095]
[1767836092794,1.29336033,3173.7,3173.1,0.44192095]
[1767836092997,1.28637454,3173.7,3173.1,0.44192095]
[1767836093213,1.28038672,3173.7,3173.1,0.12873876]
[1767836093514,1.26841108,3173.7,3173.1,0.12873876]
[1767836093701,1.25942935,3173.7,3173.1,0.12873876]
[1767836093905,1.25144559,3173.7,3173.1,0.12873876]
[1767836094108,1.24346183,3173.7,3173.1,0.12873876]
[1767836094430,1.23148619,3173.7,3173.1,0.12873876]
[1767836094719,1.22050852,3173.7,3173.1,0.12873876]
[1767836094916,1.21352273,3173.7,3173.1,0.12873876]
[1767836095094,1.20553897,3173.7,3173.1,0.12873876]
[1767836095301,1.19755521,3173.7,3173.1,0.12873876]
[1767836095502,1.18258566,3173.7,3173.1,0.12873876]
[1767836095731,1.16661814,3173.7,3173.1,0.12873876]
[1767836095940,1.15264656,3173.7,3173.1,0.12873876]
[1767836096107,1.13667904,3173.7,3173.1,0.12873876]
[1767836096440,1.11073182,3173.7,3173.1,0.12873876]
[1767836096608,1.09676024,3173.7,3173.1,0.12873876]
[1767836096809,1.07879678,3173.7,3173.1,0.12873876]
[1767836097010,1.06282926,3173.7,3173.1,0.12873876]
[1767836097211,1.04686174,3173.7,3173.1,0.12873876]
[1767836097421,1.03089422,3173.7,3173.1,0.12873876]
[1767836097629,1.0149267,3173.7,3173.1,0.12873876]
[1767836097925,0.99297136,3173.7,3173.1,3.28022446]
[1767836098130,0.97700384,3173.7,3173.1,0.12873876]
[1767836098307,0.96103632,3173.7,3173.1,0.12873876]
[1767836098522,0.94307286,3173.7,3173.1,0.12873876]
[1767836098708,0.92710534,3173.7,3173.1,0.12873876]
[1767836098910,0.91113782,3173.7,3173.1,0.12873876]
[1767836099118,3.63699529,3173.7,3172.9,0.15799717]
[1767836099470,0.91943886,3173.6,3172.9,0.15799717]
[1767836099640,0.90347134,3173.6,3172.9,0.15799717]
[1767836099810,0.88750382,3173.6,3172.9,3.30968021]
[1767836100010,0.8715363,3173.6,3172.9,3.30968021]
[1767836100205,0.85357284,3173.6,3172.9,3.30968021]
[1767836100435,0.83760532,3173.6,3172.9,3.30968021]
[1767836100624,0.8216378,3173.6,3172.9,3.30968021]
[1767836100824,0.80766622,3173.6,3173.2,0.001]
[1767836101054,0.78970276,3173.6,3172.9,3.30968021]
[1767836101336,0.76575148,3173.6,3173.0,0.33096802]
[1767836101515,0.7517799,3173.6,3173.0,0.33096802]
[1767836101705,0.73581238,3173.6,3173.0,0.33096802]
[1767836101909,0.72583268,3173.6,3173.0,0.33096802]
[1767836102108,0.72383674,3173.6,3173.0,0.33096802]
[1767836102306,0.70786922,3173.6,3173.0,0.33096802]
[1767836102543,0.6919017,3173.6,3173.0,0.33096802]
[1767836102743,0.67593418,3173.6,3173.0,3.48255254]
[1767836102907,0.65996666,3173.6,3173.0,3.48255254]
[1767836103108,0.64399914,3173.6,3173.1,0.36405497]
[1767836103334,0.62803162,3173.6,3173.1,0.36405497]
[1767836103528,0.62004786,3173.6,3173.1,0.36405497]
[1767836103728,0.61805192,3173.6,3173.1,0.36405497]
[1767836103933,0.60408034,3173.6,3173.1,0.36405497]
[1767836104141,0.58611688,3173.6,3173.0,3.61296457]
[1767836104318,0.57014936,3173.6,3173.0,3.61296457]
[1767836104641,0.827,3173.8,3172.4,3.97916079]
[1767836104642,0.97776327,3173.7,3172.5,3.8412459]
[1767836104823,0.96977951,3173.7,3172.5,3.8412459]
[1767836105020,0.96179575,3173.7,3172.5,3.8412459]
[1767836105224,0.9767653,3173.5,3172.5,3.8412459]
[1767836105537,0.96478966,3173.5,3172.5,3.8412459]
[1767836105737,0.97576733,3173.4,3172.5,3.8412459]
[1767836105938,0.96778357,3173.4,3172.5,6.99333415]
[1767836106240,0.95580793,3173.4,3172.5,3.8412459]
[1767836106413,0.94782417,3173.4,3172.5,4.54058652]
[1767836106619,0.93984041,3173.4,3172.5,7.69267477]
[1767836106819,0.93185665,3173.4,3172.5,7.69267477]
[1767836107014,0.92287492,3173.4,3172.5,0.69934062]
[1767836107340,0.91089928,3173.4,3172.4,3.15217985]
[1767836107519,0.90590943,3173.4,3172.4,3.15217985]
[1767836107727,0.9767653,3173.2,3172.4,3.15217985]
[1767836107922,0.96878154,3173.2,3172.5,0.80999232]
[1767836108124,0.96079778,3173.2,3172.5,0.80999232]
[1767836108436,0.94882214,3173.2,3172.6,0.71143598]
[1767836108745,0.34601005,3173.6,3172.8,0.92466471]
[1767836108946,0.97876124,3173.7,3172.8,0.92466471]
[1767836109134,6.30179286,3173.7,3172.9,0.92466471]
[1767836109455,0.96878154,3173.6,3172.7,0.92466471]
[1767836109636,0.97776327,3173.4,3172.7,0.92466471]
[1767836109946,0.9667856,3173.4,3172.7,0.92466471]
[1767836110250,0.95480996,3173.4,3172.7,0.92466471]
[1767836110434,0.8875562,3173.4,3172.7,0.92466471]
[1767836110640,0.87957244,3173.4,3172.7,0.92466471]
[1767836110839,3.14368239,3173.6,3172.8,0.93478323]
[1767836111146,0.03600203,3173.8,3172.9,0.93478323]
[1767836111351,6.1435943,3173.8,3172.9,0.93478323]
[1767836111547,5.6645243,3173.8,3172.9,0.93478323]
[1767836111847,5.6645243,3173.8,3173.0,0.93478323]
[1767836111848,6.1439146,3173.8,3173.0,0.93478323]
[1767836112049,6.3015943,3173.8,3173.0,0.93478323]
[1767836112228,0.08105943,3173.7,3173.0,0.93478323]
[1767836112428,5.82934534,3173.8,3173.0,0.93478323]
[1767836112633,5.78974673,3173.8,3173.0,0.93478323]
[1767836116530,5.78612673,3173.8,3173.0,0.93478323]
[1767836118758,0.93478322,3173.7,3172.8,0.001]
[1767836118934,0.93478322,3173.5,3172.8,0.001]
[1767836119136,0.93478322,3173.5,3172.8,0.93578323]
[1767836119432,0.93270322,3173.5,3172.8,0.93578323]
[1767836119835,0.672091,3173.6,3172.8,0.93578323]
[1767836120161,1.60479422,3173.6,3172.8,0.93578323]
[1767836120572,1.60190422,3173.6,3172.8,0.93578323]
[1767836120747,0.16019042,3173.5,3172.8,1.76278323]
[1767836121368,3.31130521,3173.5,3172.8,1.76278323]
[1767836122566,4.24400843,3173.5,3172.8,1.76278323]
[1767836122868,0.96110289,3173.3,3172.3,0.93478323]
[1767836123035,0.96110289,3173.3,3172.3,1.76178323]
[1767836123237,0.96110289,3173.1,3172.4,0.93478323]
[1767836123946,0.96110289,3173.0,3171.9,0.93478323]
[1767836124153,0.96110289,3173.0,3172.1,0.93478323]
[1767836124668,0.96110289,3172.7,3171.7,0.93478323]
[1767836124878,0.96110289,3172.4,3171.5,0.93478323]
[1767836125076,0.96110289,3172.2,3171.5,0.93478323]
[1767836126184,0.96110289,3172.6,3171.6,0.96631305]
[1767836126469,0.96110289,3172.8,3171.6,0.96631305]
[1767836127169,0.96110289,3172.8,3171.6,0.93478323]
[1767836128541,0.96110289,3172.6,3171.6,0.93478323]
[1767836128841,0.96110289,3172.6,3171.7,0.93478323]
[1767836129158,0.96110289,3173.1,3171.7,0.96631206]
[1767836129549,0.96005289,3173.1,3172.3,0.93478323]
[1767836129751,0.96110289,3173.0,3172.3,0.93478323]
[1767836130141,3.15149223,3173.1,3172.3,0.93478323]
[1767836130643,0.96110289,3173.1,3172.3,0.93478323]
[1767836131271,0.96110289,3173.1,3172.1,3.97946183]
[1767836131573,0.96110289,3173.1,3172.2,0.49142451]
[1767836132261,0.96002289,3173.1,3172.2,0.49142451]
[1767836132570,0.99520276,3172.9,3172.2,0.49142451]
[1767836133675,0.99520276,3172.9,3172.1,0.827]
[1767836134685,0.99520276,3172.7,3172.1,0.827]
[1767836135765,0.99520276,3172.7,3172.0,0.95976943]
[1767836136084,0.99520276,3172.7,3172.1,0.827]
[1767836136286,0.99520276,3172.7,3172.1,4.93924534]
[1767836136655,0.99520276,3172.7,3172.5,0.001]
[1767836136856,0.99520276,3172.7,3172.1,1.78676943]
[1767836137083,0.99520276,3172.7,3172.1,2.28070216]
[1767836138882,4.14689495,3172.9,3172.1,2.28070216]
[1767836139049,0.99520276,3172.8,3172.1,2.28070216]
[1767836140060,0.99520276,3172.8,3172.1,1.32093273]
[1767836140255,0.99520276,3172.8,3172.2,0.95976943]
[1767836140664,3.15169219,3172.9,3172.2,0.95976943]
[1767836141785,4.14684225,3173.0,3172.2,0.95976943]
[1767836143078,4.14684225,3173.0,3172.2,0.54332186]
[1767836143276,4.14684225,3173.0,3172.3,0.95976943]
[1767836144185,0.99520276,3172.9,3172.3,0.95976943]
[1767836146492,4.14679189,3173.1,3172.3,0.95976943]
[1767836146783,0.99520276,3173.1,3172.4,0.95976943]
[1767836146990,0.002,3173.2,3172.5,0.95976943]
[1767836147959,0.002,3173.2,3172.6,0.827]
[1767836148159,0.99720276,3173.2,3172.6,0.827]
[1767836148869,4.14861913,3173.2,3172.6,0.827]
[1767836149067,0.99720276,3173.2,3172.6,0.827]
[1767836149699,0.002,3172.9,3172.6,0.827]
[1767836149885,0.002,3172.9,3172.6,1.36754864]
[1767836151197,0.002,3172.9,3172.7,0.95976943]
[1767836154905,0.002,3172.9,3172.6,1.36754864]
[1767836157073,0.002,3172.9,3172.6,2.32731807]
[1767836157473,0.002,3172.9,3172.6,1.36754864]
[1767836157698,0.002,3172.9,3172.6,0.827]
[1767836161197,0.002,3172.9,3172.6,4.01050336]
[1767836161507,0.002,3172.9,3172.6,0.827]
[1767836161930,0.002,3172.9,3172.7,0.96715807]
[1767836162678,0.002,3172.9,3172.6,0.827]
[1767836164109,0.99954841,3172.9,3172.5,0.827]
[1767836165213,0.002,3172.9,3172.5,1.79415807]
[1767836165415,0.002,3172.9,3172.5,0.827]
[1767836165586,0.99954841,3172.9,3172.5,0.827]
[1767836166384,0.99954841,3172.9,3172.5,1.3217327]
[1767836166580,0.002,3172.9,3172.5,5.44096409]
[1767836167392,0.002,3172.9,3172.6,0.96715807]
[1767836168092,0.002,3172.9,3172.5,0.827]
[1767836168779,0.002,3173.2,3172.9,0.96715807]
[1767836170420,0.002,3173.2,3173.1,0.96715807]
[1767836174346,0.002,3173.2,3173.0,0.827]
[1767836174695,0.002,3173.2,3172.7,4.11079531]
[1767836174894,0.002,3173.2,3172.9,0.827]
[1767836175306,0.002,3173.2,3172.9,1.32077159]
[1767836176610,0.002,3173.2,3173.0,0.95892764]
[1767836181138,0.002,3173.2,3173.0,4.11047572]
[1767836181438,0.002,3173.2,3173.1,0.95892764]
[1767836181938,0.002,3173.2,3173.1,4.11041987]
[1767836182135,0.002,3173.2,3173.1,1.76783824]
[1767836182339,0.002,3173.2,3172.9,4.9375782]
[1767836184045,0.002,3173.2,3172.9,1.78592764]
[1767836185043,0.002,3173.2,3172.9,4.93758133]
[1767836187346,0.002,3173.2,3173.0,0.95892764]
[1767836187648,0.002,3173.2,3173.0,4.11046034]
[1767836187833,0.002,3173.2,3173.1,0.95892764]
[1767836189649,0.002,3173.2,3173.1,4.11041987]
[1767836190445,0.002,3173.2,3173.1,4.14193479]
[1767836190850,0.002,3173.2,3173.1,3.18300715]
[1767836191054,0.002,3173.2,3173.1,3.15149223]
[1767836191232,0.002,3173.2,3173.1,4.04128572]
[1767836191915,0.002,3173.2,3173.1,5.00021336]
[1767836192650,0.002,3173.2,3173.1,4.04128572]
[1767836192950,0.002,3173.5,3173.1,4.04128572]
[1767836193149,0.002,3173.5,3173.1,0.88979349]
[1767836193314,0.002,3173.5,3173.0,0.92623113]
[1767836194222,0.002,3173.5,3173.0,4.07779583]
[1767836195863,0.002,3173.5,3173.1,0.827]
[1767836196556,0.82497253,3173.5,3173.2,0.827]
[1767836196733,0.82497253,3173.5,3173.1,0.827]
[1767836197756,0.002,3173.2,3173.1,0.827]
[1767836203151,0.002,3173.2,3172.8,0.92623113]
[1767836203348,0.002,3173.2,3172.7,3.15181993]
[1767836203646,0.002,3173.2,3172.9,0.827]
[1767836204902,0.002,3173.2,3173.0,0.92623113]
[1767836205056,0.002,3173.5,3173.1,0.95774605]
[1767836205386,0.002,3173.5,3173.3,0.92623113]
[1767836205790,0.002,3173.5,3173.1,4.07771967]
[1767836206360,0.002,3173.5,3173.2,0.92623113]
[1767836208610,0.002,3173.5,3173.0,4.07774435]
[1767836208978,0.002,3173.5,3173.0,4.69214922]
[1767836209501,0.002,3173.2,3173.0,4.69214922]
[1767836212908,0.002,3173.2,3173.0,1.540636]
[1767836213303,0.002,3173.2,3173.0,0.61440487]
[1767836213805,0.002,3173.2,3172.9,3.97866559]
[1767836214010,0.002,3173.2,3172.9,0.827]
[1767836215013,0.002,3173.2,3172.9,3.97869033]
[1767836215909,0.002,3173.2,3172.9,0.827]
[1767836216114,0.002,3173.2,3172.8,4.08549264]
[1767836216289,0.002,3173.2,3173.0,0.827]
[1767836216487,0.002,3173.2,3172.7,3.87484615]
[1767836216488,0.84779695,3173.2,3172.9,0.827]
[1767836218583,0.84579899,3173.2,3172.9,0.827]